bitfinex-derivatives/quotes_SOLF0:USTF0_20250730
["timestamp","ask_amount","ask_price","bid_price","bid_amount"]
[1753845624830,3.14,181.66,181.53,3.04]
[1753845625223,5.5084,181.57,181.53,8.5494]
[1753845625422,3.14,181.56,181.52,9.25360043]
[1753845625929,3.14,181.68,181.52,12.29360043]
[1753845626130,3.14,181.66,181.52,12.29360043]
[1753845626331,3.14,181.57,181.54,5.5092]
[1753845626728,11.0096,181.69,181.55,5.5089]
[1753845626729,5.5078,181.59,181.55,5.5089]
[1753845626933,3.14,181.55,181.53,3.04]
[1753845627134,3.14,181.55,181.51,3.04]
[1753845627330,5.5077,181.6,181.51,3.04]
[1753845627632,3.14,181.59,181.51,3.04]
[1753845627828,8.648,181.59,181.55,5.509]
[1753845628135,3.14,181.58,181.55,5.509]
[1753845628631,5.5081,181.58,181.55,5.509]
[1753845628834,3.14,181.57,181.55,5.509]
[1753845630931,3.14,181.6,181.51,3.04]
[1753845631838,5.5066,181.63,181.58,3.04]
[1753845632136,3.14,181.61,181.59,3.04]
[1753845632334,3.14,181.61,181.6,8.5474]
[1753845632542,3.14,181.7,181.51,3.04]
[1753845632833,3.14,181.68,181.58,5.508]
[1753845633038,4.5878876,181.71,181.58,5.508]
[1753845633039,4.03093767,181.67,181.58,5.508]
[1753845633232,3.14,181.66,181.58,5.508]
[1753845633432,3.14,181.61,181.58,5.508]
[1753845634038,8.6474,181.61,181.57,8.5483]
[1753845634238,3.14,181.6,181.57,8.5483]
[1753845634936,3.14,181.69,181.51,3.04]
[1753845635135,3.14,181.67,181.52,3.04]
[1753845635328,3.14,181.65,181.52,3.04]
[1753845635536,3.14,181.57,181.55,5.5089]
[1753845636137,3.14,181.56,181.5,0.95878334]
[1753845636736,3.14,181.56,181.5,3.99878334]
[1753845637246,3.14,181.65,181.51,5.5101]
[1753845637442,3.14,181.63,181.46,118.54]
[1753845637741,5.5094,181.54,181.51,5.5102]
[1753845637943,3.14,181.53,181.51,5.5102]
[1753845638141,3.14,181.52,181.51,5.5102]
[1753845639240,3.14,181.52,181.49,3.04]
[1753845639241,3.14,181.51,181.5,5.5104]
[1753845639541,5.5093,181.54,181.5,5.5104]
[1753845639542,5.5091,181.55,181.5,3.04]
[1753845639741,3.14,181.65,181.5,3.04]
[1753845639931,4.02224311,181.64,181.5,3.04]
[1753845640132,3.14,181.62,181.5,3.04]
[1753845640340,3.14,181.6,181.5,3.04]
[1753845640741,3.14,181.6,181.51,5.51]
[1753845641343,3.14,181.54,181.51,8.55]
[1753845641743,3.14,181.53,181.52,5.5099]
[1753845641945,3.14,181.53,181.52,8.5499]
[1753845643143,3.14,181.53,181.48,3.04]
[1753845643340,3.14,181.53,181.4,3.04]
[1753845643650,4.5878876,181.62,181.4,3.04]
[1753845643651,3.14,181.47,181.43,3.04]
[1753845643840,3.14,181.47,181.4,3.04]
[1753845644043,3.14,181.42,181.39,3.04]
[1753845644246,3.14,181.4,181.36,3.04]
[1753845644440,3.14,181.52,181.36,3.04]
[1753845644641,3.14,181.5,181.41,5.5131]
[1753845645042,3.14,181.5,181.4,3.04]
[1753845645241,3.14,181.45,181.4,3.04]
[1753845645442,3.14,181.44,181.42,3.04]
[1753845645645,124.0,181.51,181.42,3.04]
[1753845645848,3.14,181.46,181.43,3.04]
[1753845646042,3.14,181.55,181.43,3.04]
[1753845646241,5.5108,181.49,181.43,3.04]
[1753845646545,8.6508,181.49,181.43,3.04]
[1753845647037,3.14,181.46,181.36,3.04]
[1753845647643,3.14,181.46,181.43,5.5125]
[1753845647842,3.14,181.55,181.43,3.04]
[1753845648046,3.14,181.53,181.43,3.04]
[1753845648843,5.5108,181.49,181.45,5.5119]
[1753845649051,3.14,181.48,181.46,3.04]
[1753845649350,3.14,181.47,181.45,8.5519]
[1753845651150,5.5105,181.5,181.46,8.5517]
[1753845651346,2.97,181.49,181.48,3.07]
[1753845651550,370.3,181.57,181.48,3.07]
[1753845651753,4.01401177,181.56,181.49,3.07]
[1753845651954,370.3,181.57,181.5,3.07]
[1753845652143,5.5105,181.51,181.42,118.84]
[1753845652350,2.97,181.5,181.43,3.07]
[1753845653352,2.97,181.49,181.46,8.5815]
[1753845653542,2.97,181.48,181.46,8.5815]
[1753845653749,2.97,181.48,181.42,118.84]
[1753845654051,2.97,181.5,181.48,3.07]
[1753845654448,2.97,181.56,181.48,3.07]
[1753845655152,5.5101,181.52,181.48,8.581]
[1753845655555,2.97,181.5,181.48,8.581]
[1753845655853,8.4801,181.52,181.49,8.5808]
[1753845656057,2.97,181.51,181.49,8.5808]
[1753845656754,2.97,181.51,181.49,3.07]
[1753845656947,5.5099,181.52,181.49,3.07]
[1753845657147,2.97,181.5,181.49,3.07]
[1753845657555,2.97,181.5,181.48,5.511]
[1753845657757,2.97,181.52,181.51,3.07]
[1753845657944,2.97,181.52,181.42,118.84]
[1753845657945,2.97,181.53,181.42,118.84]
[1753845658148,2.97,181.53,181.52,3.07]
[1753845658951,2.97,181.55,181.43,3.07]
[1753845659151,5.5104,181.51,181.47,5.5114]
[1753845659354,2.97,181.49,181.47,8.5814]
[1753845659548,2.97,181.48,181.47,8.5814]
[1753845659855,2.97,181.48,181.47,3.07]
[1753845660057,2.97,181.47,181.46,5.5116]
[1753845660351,2.97,181.48,181.47,5.5114]
[1753845660556,6.17943052,181.63,181.42,118.68]
[1753845660557,2.97,181.6,181.48,3.07]
[1753845661352,5.5081,181.58,181.54,5.5091]
[1753845661654,2.97,181.64,181.52,3.07]
[1753845662150,2.97,181.59,181.55,5.5087]
[1753845662453,2.97,181.65,181.54,3.07]
[1753845662657,2.97,181.63,181.54,3.07]
[1753845663354,5.508,181.59,181.55,5.5089]
[1753845663555,2.97,181.58,181.55,8.5789]
[1753845663961,2.97,181.61,181.51,3.07]
[1753845664550,2.97,181.59,181.57,8.5783]
[1753845665755,8.4772,181.61,181.58,3.07]
[1753845665957,2.97,181.66,181.51,3.07]
[1753845666145,118.74,181.7,181.51,3.07]
[1753845666146,8.4766,181.63,181.51,3.07]
[1753845666552,2.97,181.63,181.51,3.07]
[1753845666854,2.97,181.65,181.51,3.07]
[1753845668256,2.97,181.65,181.61,5.5069]
[1753845668448,2.97,181.65,181.61,8.5769]
[1753845669058,2.97,181.64,181.61,5.5069]
[1753845669256,2.97,181.63,181.62,3.07]
[1753845669961,2.97,181.63,181.61,5.5069]
[1753845670252,2.97,181.64,181.61,8.5769]
[1753845671060,2.97,181.63,181.61,5.5069]
[1753845671363,2.97,181.64,181.62,8.5768]
[1753845671862,2.97,181.63,181.62,8.5768]
[1753845673159,2.97,181.63,181.6,5.5072]
[1753845673362,2.97,181.62,181.6,8.5772]
[1753845673560,2.97,181.72,181.6,8.5772]
[1753845673861,2.97,181.66,181.62,5.5068]
[1753845674561,2.97,181.66,181.61,8.5771]
[1753845675260,5.506,181.65,181.62,5.5068]
[1753845675459,2.97,181.63,181.62,8.5768]
[1753845675660,2.97,181.63,181.62,5.5068]
[1753845677961,2.97,181.63,181.62,8.5768]
[1753845679462,5.5054,181.67,181.63,5.5065]
[1753845679764,2.97,181.64,181.63,8.5765]
[1753845680156,2.97,181.64,181.63,5.5065]
[1753845681357,2.94,181.72,181.64,3.02]
[1753845682363,2.94,181.72,181.55,19.57]
[1753845682564,2.94,181.72,181.57,3.02]
[1753845683867,2.94,181.71,181.57,3.02]
[1753845684868,2.94,181.7,181.65,3.02]
[1753845685169,2.94,181.7,181.63,3.02]
[1753845685675,5.5045,181.7,181.65,5.5059]
[1753845685866,2.94,181.69,181.65,8.5259]
[1753845686067,2.94,181.69,181.65,3.02]
[1753845686270,2.94,181.68,181.66,8.5254]
[1753845687170,2.94,181.67,181.66,8.5254]
[1753845687372,2.94,181.67,181.65,5.5058]
[1753845687569,2.94,181.66,181.65,8.5258]
[1753845687865,2.94,181.66,181.63,5.5063]
[1753845688072,2.94,181.76,181.63,5.5063]
[1753845688467,5.5053,181.67,181.63,5.5063]
[1753845688972,2.94,181.66,181.64,5.5062]
[1753845689164,2.94,181.65,181.64,5.5062]
[1753845689773,5.5054,181.67,181.63,8.5265]
[1753845689976,2.94,181.64,181.63,8.5265]
[1753845691068,2.94,181.74,181.61,8.527]
[1753845691273,2.94,181.72,181.57,3.02]
[1753845691476,2.94,181.7,181.57,3.02]
[1753845691769,5.5066,181.63,181.59,8.5275]
[1753845691962,2.94,181.61,181.59,8.5275]
[1753845692160,2.94,181.61,181.6,5.5074]
[1753845692367,2.94,181.73,181.6,3.02]
[1753845692670,2.94,181.71,181.6,3.02]
[1753845692971,2.94,181.69,181.62,5.5067]
[1753845693373,2.94,181.69,181.61,3.02]
[1753845693867,2.94,181.69,181.66,5.5054]
[1753845694666,2.94,181.69,181.67,5.5053]
[1753845695680,2.94,181.69,181.66,5.5056]
[1753845695871,2.94,181.69,181.67,3.02]
[1753845696177,2.94,181.69,181.68,3.02]
[1753845696370,5.5041,181.71,181.67,5.5051]
[1753845696567,2.94,181.7,181.67,5.5051]
[1753845697778,2.94,181.69,181.67,5.5051]
[1753845698164,2.94,181.68,181.67,5.5051]
[1753845699070,2.94,181.68,181.67,8.5251]
[1753845699876,2.94,181.68,181.67,3.02]
[1753845700177,2.94,181.67,181.66,8.5255]
[1753845702774,2.94,181.71,181.66,3.02]
[1753845702973,2.94,181.72,181.57,3.02]
[1753845703276,2.94,181.72,181.58,3.02]
[1753845703479,2.94,181.72,181.6,3.02]
[1753845704071,4.59147228,181.79,181.69,3.02]
[1753845704278,4.05634643,181.78,181.69,3.02]
[1753845704572,2.94,181.76,181.74,5.503]
[1753845704880,2.94,181.75,181.74,8.523]
[1753845705570,2.94,181.81,181.74,3.02]
[1753845705775,4.59147228,181.85,181.74,3.02]
[1753845705977,2.94,181.84,181.74,3.02]
[1753845706176,5.5013,181.81,181.77,5.502]
[1753845706377,2.94,181.8,181.77,5.502]
[1753845707473,5.5008,181.82,181.79,5.5017]
[1753845707678,2.94,181.8,181.78,3.02]
[1753845707879,2.94,181.8,181.79,3.02]
[1753845708079,2.94,181.8,181.69,3.02]
[1753845710384,5.5015,181.8,181.69,3.02]
[1753845710679,2.94,181.79,181.69,3.02]
[1753845711385,3.14,181.78,181.69,3.02]
[1753845711879,3.14,181.78,181.74,5.503]
[1753845712079,8.642,181.78,181.74,5.503]
[1753845712274,3.14,181.77,181.74,5.503]
[1753845712474,3.14,181.77,181.75,5.5028]
[1753845712678,3.14,181.81,181.68,16.55]
[1753845712880,3.14,181.81,181.69,3.21]
[1753845713276,3.14,181.81,181.8,5.5014]
[1753845713680,3.14,181.87,181.69,3.21]
[1753845713982,3.14,181.85,181.69,3.21]
[1753845714179,8.64,181.85,181.8,5.5011]
[1753845714383,3.14,181.84,181.78,3.21]
[1753845714983,3.14,181.84,181.7,3.21]
[1753845715281,3.14,181.84,181.7,19.76]
[1753845715582,3.14,181.84,181.82,5.5008]
[1753845715783,5.4997,181.86,181.7,16.55]
[1753845716082,3.14,181.82,181.81,3.21]
[1753845716285,3.14,181.84,181.71,3.21]
[1753845717275,3.14,181.84,181.82,5.5008]
[1753845717476,3.14,181.84,181.7,27.5585]
[1753845717681,3.14,181.84,181.8,3.21]
[1753845717885,3.14,181.84,181.83,5.5005]
[1753845718685,3.14,181.83,181.82,5.5007]
[1753845719085,3.14,181.83,181.78,3.21]
[1753845719284,3.14,181.83,181.7,27.5585]
[1753845719484,3.14,181.83,181.79,3.21]
[1753845720289,3.14,181.82,181.75,3.21]
[1753845720987,3.14,181.8,181.77,5.5022]
[1753845721384,3.14,181.82,181.79,5.5016]
[1753845721586,3.14,181.82,181.76,3.21]
[1753845722485,3.14,181.82,181.75,3.21]
[1753845723390,3.14,181.8,181.77,5.5023]
[1753845723789,3.14,181.91,181.78,5.502]
[1753845723990,3.14,181.89,181.78,5.502]
[1753845724188,3.14,181.87,181.78,5.502]
[1753845724389,5.501,181.82,181.78,5.502]
[1753845724590,3.14,181.81,181.78,5.502]
[1753845725689,3.14,181.81,181.77,5.5022]
[1753845727000,3.14,181.81,181.78,5.5019]
[1753845727306,3.14,181.8,181.78,5.5019]
[1753845727498,3.14,181.79,181.7,3.21]
[1753845728097,3.14,181.79,181.69,117.92]
[1753845728304,3.14,181.79,181.71,3.21]
[1753845728701,5.5008,181.82,181.69,117.92]
[1753845728901,3.14,181.81,181.7,3.21]
[1753845730404,3.14,181.81,181.79,5.5015]
[1753845733502,3.14,181.81,181.75,3.21]
[1753845734503,5.5012,181.81,181.77,5.5021]
[1753845734808,3.14,181.8,181.77,8.7121]
[1753845735810,3.14,181.81,181.78,8.7119]
[1753845736107,3.14,181.8,181.79,3.21]
[1753845736504,3.14,181.8,181.79,8.7117]
[1753845736704,3.14,181.91,181.79,3.21]
[1753845736905,4.02985,181.9,181.79,3.21]
[1753845737104,3.14,181.89,181.74,369.8]
[1753845737301,3.14,181.89,181.81,3.21]
[1753845737912,5.4992,181.88,181.83,5.5004]
[1753845738111,3.14,181.87,181.83,5.5004]
[1753845738408,3.14,181.87,181.84,8.71]
[1753845738914,3.14,181.87,181.85,5.4998]
[1753845739308,3.14,181.86,181.85,5.4998]
[1753845740012,3.14,181.86,181.85,8.7098]
[1753845740712,3.14,181.86,181.85,5.4998]
[1753845741408,3.14,181.86,181.85,8.6598]
[1753845741612,376.19943052,181.97,181.85,3.16]
[1753845741613,3.17,181.94,181.85,3.16]
[1753845742013,3.17,181.94,181.91,5.498]
[1753845742315,3.17,181.94,181.8,117.7]
[1753845742513,3.17,181.94,181.9,3.16]
[1753845742916,3.17,181.94,181.88,3.16]
[1753845743116,5.4975,181.93,181.88,8.6588]
[1753845743318,3.17,181.92,181.88,3.16]
[1753845743913,3.17,181.92,181.8,117.7]
[1753845744215,3.17,181.97,181.85,3.16]
[1753845744409,4.5909818,181.98,181.76,11.0047]
[1753845744410,3.17,181.95,181.8,3.16]
[1753845744607,3.17,181.88,181.84,5.5]
[1753845745115,3.17,181.89,181.85,8.6597]
[1753845745513,3.17,181.89,181.83,3.16]
[1753845745821,3.17,181.89,181.79,117.7]
[1753845745822,3.17,181.89,181.8,3.16]
[1753845746415,3.17,181.89,181.81,3.16]
[1753845746917,3.17,181.87,181.81,3.16]
[1753845748219,3.17,181.93,181.8,3.16]
[1753845748421,4.04352386,181.92,181.8,3.16]
[1753845748721,5.4992,181.88,181.83,5.5004]
[1753845749118,3.17,181.87,181.83,8.6604]
[1753845749419,3.17,181.87,181.8,3.16]
[1753845749820,3.17,181.87,181.84,5.5]
[1753845750020,3.17,181.86,181.84,8.66]
[1753845750421,3.17,181.86,181.79,117.7]
[1753845750422,3.17,181.86,181.85,8.6599]
[1753845750624,3.17,181.88,181.85,3.16]
[1753845751323,3.17,181.87,181.86,3.16]
[1753845751717,3.17,181.87,181.86,5.4996]
[1753845751917,3.17,181.87,181.8,3.16]
[1753845753528,5.4993,181.87,181.8,3.16]
[1753845753726,3.17,181.86,181.8,3.16]
[1753845754227,3.17,181.86,181.82,5.5005]
[1753845754431,3.17,181.86,181.82,3.16]
[1753845754627,3.17,181.86,181.83,5.5003]
[1753845754926,3.17,181.86,181.8,3.16]
[1753845756328,3.17,181.86,181.82,5.5005]
[1753845756329,3.17,181.85,181.82,5.5005]
[1753845756625,3.17,181.85,181.81,3.16]
[1753845756828,3.17,181.85,181.82,3.16]
[1753845757022,3.17,181.84,181.83,5.5003]
[1753845760230,3.17,181.84,181.83,8.6603]
[1753845760527,3.17,181.86,181.85,8.6598]
[1753845760831,3.17,181.9,181.8,3.16]
[1753845761926,3.17,181.9,181.88,5.4988]
[1753845763428,5.4977,181.93,181.88,5.4988]
[1753845763629,3.17,181.92,181.89,5.4986]
[1753845763827,3.17,181.91,181.9,3.16]
[1753845764623,3.17,181.95,181.91,8.658]
[1753845764834,3.17,181.92,181.91,8.658]
[1753845765134,3.17,181.92,181.89,5.4984]
[1753845765635,3.17,181.92,181.88,5.4989]
[1753845766937,3.17,181.92,181.89,5.4987]
[1753845767933,3.17,181.9,181.81,3.16]
[1753845768633,5.4984,181.9,181.81,3.16]
[1753845768836,3.17,181.89,181.81,3.16]
[1753845769039,3.17,181.97,181.82,3.16]
[1753845769236,3.17,181.95,181.82,3.16]
[1753845769431,3.17,181.93,181.82,3.16]
[1753845769627,4.61144463,181.98,181.82,3.16]
[1753845769628,3.17,181.86,181.82,3.16]
[1753845770034,3.17,181.86,181.83,5.5002]
[1753845770228,3.17,181.85,181.79,117.7]
[1753845770433,3.17,181.85,181.84,3.16]
[1753845771238,3.17,181.85,181.84,8.6601]
[1753845771436,3.08,181.87,181.79,117.7]
[1753845771643,4.61144463,181.96,181.79,117.7]
[1753845771836,3.08,181.88,181.87,3.17]
[1753845772035,3.08,181.88,181.8,3.17]
[1753845773241,3.08,181.88,181.85,5.4997]
[1753845773940,3.08,181.88,181.86,5.4995]
[1753845774138,5.4984,181.9,181.86,5.4995]
[1753845774342,3.08,181.87,181.86,5.4995]
[1753845775035,3.08,181.88,181.87,5.4993]
[1753845775244,3.08,181.88,181.87,8.6693]
[1753845775741,5.498,181.92,181.88,5.4989]
[1753845775943,3.08,181.96,181.88,3.17]
[1753845776242,3.08,181.94,181.88,3.17]
[1753845776539,3.08,181.92,181.91,3.17]
[1753845776744,3.08,181.92,181.9,5.4981]
[1753845776932,3.08,181.92,181.9,8.6681]
[1753845777234,4.61144463,182.0,181.91,3.17]
[1753845777438,4.61144463,182.0,181.83,19.72]
[1753845777439,3.08,181.98,181.83,19.72]
[1753845777642,3.08,181.96,181.84,3.17]
[1753845778235,3.08,181.96,181.84,12.42360043]
[1753845778435,3.08,181.96,181.85,3.17]
[1753845779040,3.08,181.96,181.95,5.4969]
[1753845780135,3.08,181.96,181.95,3.17]
[1753845780336,3.08,181.96,181.9,3.17]
[1753845781444,3.08,181.95,181.94,5.497]
[1753845781644,3.08,182.02,181.88,3.17]
[1753845781844,3.08,182.0,181.88,3.17]
[1753845782346,3.08,181.98,181.88,3.17]
[1753845782644,3.08,181.97,181.96,3.17]
[1753845783046,3.08,181.99,181.97,5.496]
[1753845783244,3.08,181.98,181.97,3.17]
[1753845783746,3.08,181.98,181.88,3.17]
[1753845784847,3.08,181.98,181.96,5.4965]
[1753845785044,3.08,181.98,181.92,117.62]
[1753845785249,3.08,181.98,181.93,3.17]
[1753845786350,3.08,181.98,181.94,3.17]
[1753845786749,3.08,182.0,181.93,3.17]
[1753845789049,3.08,181.98,181.94,3.17]
[1753845789245,3.08,181.98,181.92,117.62]
[1753845789551,3.08,181.98,181.95,8.6666]
[1753845790660,3.08,181.97,181.96,5.4964]
[1753845790965,4.61144463,182.09,181.93,3.17]
[1753845791161,3.08,182.02,181.93,3.17]
[1753845791856,3.08,182.02,181.98,5.4957]
[1753845792056,3.08,182.02,181.98,8.6657]
[1753845792457,3.08,182.02,181.99,5.4954]
[1753845792858,3.08,182.03,182.0,3.17]
[1753845793058,3.08,182.03,181.99,5.4954]
[1753845793260,3.08,182.02,181.98,5.4959]
[1753845793456,3.08,182.02,181.98,3.17]
[1753845793769,3.08,182.02,181.96,3.17]
[1753845795064,3.08,182.02,181.99,5.4953]
[1753845795761,3.08,182.02,181.99,8.6653]
[1753845796062,3.08,182.02,182.0,5.4953]
[1753845796366,3.08,182.08,181.99,3.17]
[1753845796962,5.4939,182.05,182.0,5.4951]
[1753845797164,3.08,182.04,182.0,8.6651]
[1753845797366,3.08,182.04,182.0,5.4951]
[1753845797961,3.08,182.04,182.01,5.4948]
[1753845798166,3.08,182.04,182.01,8.6648]
[1753845798466,3.08,182.04,182.01,5.4948]
[1753845799168,3.08,182.04,182.0,5.4952]
[1753845800064,3.08,182.03,182.0,5.4952]
[1753845800267,3.08,182.03,181.97,3.17]
[1753845801066,3.08,182.03,181.95,3.17]
[1753845801668,3.21,182.01,181.97,5.496]
[1753845802063,5.4944,182.04,181.99,5.4954]
[1753845802370,3.21,182.0,181.99,8.6454]
[1753845802764,3.21,182.0,181.99,5.4954]
[1753845803967,3.21,182.0,181.99,8.6454]
[1753845804664,3.21,182.02,181.92,3.15]
[1753845804870,3.21,182.1,181.92,3.15]
[1753845805472,3.21,182.07,181.98,3.15]
[1753845805873,3.21,182.07,182.03,8.6442]
[1753845807068,3.21,182.07,182.04,8.6441]
[1753845808175,3.21,182.14,182.04,3.15]
[1753845808376,3.21,182.12,182.04,3.15]
[1753845809773,15.59124463,182.19,182.04,3.15]
[1753845809774,3.21,182.1,182.04,3.15]
[1753845809974,3.21,182.1,181.99,3.15]
[1753845812380,5.4933,182.07,182.03,5.4942]
[1753845812579,3.21,182.06,182.03,5.4942]
[1753845813780,3.21,182.06,182.04,5.4941]
[1753845814173,5.493,182.08,182.04,5.4941]
[1753845814375,3.21,182.05,182.04,5.4941]
[1753845815577,3.21,182.05,182.03,5.4944]
[1753845816682,3.21,182.05,182.04,5.4941]
[1753845817383,3.21,182.05,182.04,8.6441]
[1753845818383,5.4924,182.1,182.06,5.4935]
[1753845818581,3.21,182.09,182.06,8.6435]
[1753845818889,3.21,182.08,182.07,3.15]
[1753845819085,5.4921,182.11,182.06,5.4935]
[1753845819283,3.21,182.07,182.06,8.6435]
[1753845819487,3.21,182.08,182.06,3.15]
[1753845819681,3.21,182.07,182.06,3.15]
[1753845820686,3.21,182.07,182.06,8.6435]
[1753845821082,3.21,182.1,182.06,5.4935]
[1753845821288,3.21,182.1,181.98,117.54]
[1753845821488,3.21,182.1,182.05,3.15]
[1753845822889,3.21,182.16,181.99,3.15]
[1753845823085,4.61144463,182.14,181.99,3.15]
[1753845823282,3.21,182.12,181.99,3.15]
[1753845823486,3.21,182.1,181.99,3.15]
[1753845823697,5.4938,182.05,182.01,5.495]
[1753845823992,3.21,182.04,181.99,3.15]
[1753845824179,3.21,182.04,181.96,117.5]
[1753845824382,3.21,182.04,182.01,3.15]
[1753845824681,3.21,182.04,182.02,5.4945]
[1753845824880,3.21,182.04,181.99,3.15]
[1753845825490,3.21,182.04,182.01,5.495]
[1753845825790,3.21,182.11,181.97,3.15]
[1753845825989,3.21,182.09,181.97,3.15]
[1753845826291,3.21,182.13,182.03,3.15]
[1753845826485,4.04064492,182.12,182.03,3.15]
[1753845826690,3.21,182.08,182.03,3.15]
[1753845827086,5.4924,182.1,182.03,3.15]
[1753845827392,3.21,182.09,182.03,3.15]
[1753845827688,8.7027,182.09,182.06,5.4935]
[1753845827892,3.21,182.08,182.06,5.4935]
[1753845828687,3.21,182.07,182.06,5.4935]
[1753845829881,3.21,182.07,182.05,5.4938]
[1753845830084,3.21,182.07,181.97,3.15]
[1753845830284,3.21,182.06,182.03,5.4943]
[1753845830990,5.4936,182.06,182.03,5.4943]
[1753845831191,3.21,182.05,182.03,5.4943]
[1753845831894,3.21,182.05,182.02,5.4947]
[1753845832587,8.7039,182.05,182.01,5.495]
[1753845832888,3.16,182.04,182.0,3.18]
[1753845833092,6.17943052,182.14,181.96,117.5]
[1753845833093,5.4954,182.0,181.96,5.4964]
[1753845833291,5.4954,182.0,181.94,3.18]
[1753845833292,3.16,181.99,181.94,3.18]
[1753845833593,3.16,181.99,181.95,3.18]
[1753845833888,3.16,181.98,181.95,5.4968]
[1753845834484,5.496,181.98,181.94,5.4971]
[1753845834689,3.16,181.96,181.92,369.28]
[1753845834887,3.16,181.95,181.93,3.18]
[1753845835190,3.16,181.97,181.95,5.4966]
[1753845835393,3.16,181.96,181.95,8.6766]
[1753845836694,3.16,181.95,181.94,3.18]
[1753845836891,3.16,182.04,181.92,372.46]
[1753845837093,3.16,182.02,181.9,3.18]
[1753845837290,3.16,182.0,181.89,117.5]
[1753845837489,3.16,181.98,181.89,120.68]
[1753845837694,3.16,181.96,181.93,8.6775]
[1753845837893,3.16,181.96,181.93,3.18]
[1753845838098,3.16,181.96,181.91,3.18]
[1753845838398,3.16,181.96,181.89,120.68]
[1753845838700,3.16,181.94,181.89,120.68]
[1753845839388,8.6574,181.94,181.9,5.4983]
[1753845839794,3.16,181.93,181.89,120.68]
[1753845839996,3.16,181.93,181.89,126.1786]
[1753845839997,8.6575,181.93,181.89,126.1786]
[1753845840197,3.16,182.02,181.89,120.68]
[1753845840396,3.16,182.0,181.9,3.18]
[1753845840596,3.16,181.94,181.9,8.6781]
[1753845841403,3.16,182.01,181.89,117.5]
[1753845841704,3.16,181.99,181.89,117.5]
[1753845842001,3.16,181.97,181.87,3.18]
[1753845842300,3.16,181.95,181.87,3.18]
[1753845842592,3.16,181.91,181.88,3.18]
[1753845842798,3.16,181.91,181.87,3.18]
[1753845843303,3.16,181.89,181.87,3.18]